bitfinex/quotes_ETHUSD_20240702
["timestamp","ask_amount","ask_price","bid_price","bid_amount"]
[1719930011669,0.23012656,3426.0,3425.9,18.662442]
[1719930012075,5.46761374,3428.6,3427.1,2.91789]
[1719930012076,7.3595,3428.1,3427.1,2.91789]
[1719930012316,0.50520284,3428.0,3427.2,3.209609]
[1719930012513,0.50520284,3427.9,3427.2,2.91782]
[1719930012809,0.78647028,3427.8,3427.3,2.91773]
[1719930013175,0.78647028,3427.8,3427.2,2.91782]
[1719930013372,7.3595,3428.1,3427.4,2.91758]
[1719930013578,7.3595,3428.1,3427.2,2.91779]
[1719930013579,0.5051728,3428.0,3427.2,2.91779]
[1719930013772,10.27659,3428.1,3427.0,2.91796]
[1719930013978,10.27659,3428.1,3426.6,2.91831]
[1719930013979,1.07817628,3427.9,3426.6,2.91831]
[1719930014223,0.50519586,3427.8,3426.7,0.55]
[1719930014387,1.07817628,3427.9,3426.7,0.55]
[1719930014577,1.07817628,3427.9,3427.3,2.91769]
[1719930014919,1.07817628,3427.9,3427.4,5.8352]
[1719930015214,1.07817628,3427.9,3427.2,5.83556]
[1719930015420,7.3595,3428.1,3427.6,2.91748]
[1719930015717,7.3595,3428.1,3427.7,2.91739]
[1719930015925,0.48548585,3428.0,3427.7,2.91739]
[1719930016495,0.48548585,3428.0,3426.9,3.0]
[1719930016496,0.54676137,3428.5,3427.8,2.91729]
[1719930016720,6.8727,3428.5,3427.8,2.91729]
[1719930017424,6.8727,3428.5,3427.8,2.91726]
[1719930017831,8.7511,3428.4,3427.8,2.91726]
[1719930018302,8.7511,3428.4,3427.9,2.91723]
[1719930018952,8.7511,3428.4,3427.8,2.91726]
[1719930019233,1.74338,3428.3,3427.3,6.25869]
[1719930019448,8.7511,3428.2,3427.8,2.91726]
[1719930019792,2.91707,3428.1,3427.2,2.91776]
[1719930019998,6.8142,3427.9,3426.8,2.91813]
[1719930020297,11.66843,3427.8,3426.8,3.0]
[1719930020525,11.66843,3427.8,3426.5,2.91837]
[1719930020526,2.91749,3427.6,3426.5,2.91837]
[1719930020725,7.0926,3427.4,3426.5,2.91837]
[1719930020941,8.7511,3427.3,3426.5,2.91837]
[1719930021141,2.91805,3427.0,3425.9,3.5975141]
[1719930021306,9.042905,3426.9,3426.3,2.91852]
[1719930021507,8.7511,3426.9,3426.5,2.91841]
[1719930021714,8.7511,3426.9,3426.4,2.91845]
[1719930022311,8.7511,3426.9,3426.5,2.91841]
[1719930023156,8.7511,3426.9,3426.6,2.91833]
[1719930024057,8.7511,3426.9,3426.8,5.83634]
[1719930024356,8.7511,3426.9,3426.8,2.91817]
[1719930025215,8.7511,3426.9,3426.8,5.83634]
[1719930025615,8.7511,3426.9,3426.8,6.38634]
[1719930027554,8.7511,3426.9,3426.8,9.38634]
[1719930027782,8.7511,3426.9,3426.8,10.950904]
[1719930029461,8.16015064,3426.9,3426.8,10.950904]
[1719930029662,2.2512975,3426.9,3426.8,13.869074]
[1719930030381,1.4012975,3426.9,3426.8,13.869074]
[1719930030946,1.4012975,3426.9,3426.8,10.950904]
[1719930031183,1.4012975,3426.9,3426.8,5.91817]
[1719930031348,1.4012975,3426.9,3426.8,8.83634]
[1719930031995,1.4012975,3426.9,3426.8,2.91817]
[1719930032294,1.4012975,3426.9,3426.7,2.91824]
[1719930033596,1.4012975,3426.9,3426.5,2.9184]
[1719930033801,1.4012975,3426.9,3426.3,3.1761369]
[1719930034096,7.1466,3426.8,3425.9,2.91887]
[1719930034389,1.4012975,3426.7,3426.1,2.91876]
[1719930034683,1.4012975,3426.7,3426.5,2.91838]
[1719930034891,1.4012975,3426.7,3426.6,2.91834]
[1719930035656,1.4012975,3426.7,3426.2,2.91863]
[1719930035981,1.4012975,3426.7,3426.0,2.91884]
[1719930036182,1.83322825,3426.7,3426.0,2.91884]
[1719930036359,1.83322825,3426.7,3426.1,2.91876]
[1719930036561,6.885,3426.6,3425.9,2.91888]
[1719930036900,1.4012975,3426.5,3425.7,2.91905]
[1719930037064,1.4012975,3426.5,3425.7,2.91904]
[1719930037260,1.4012975,3426.5,3425.5,2.91925]
[1719930037494,1.12045575,3426.4,3425.8,2.91902]
[1719930038409,1.4012975,3426.5,3426.3,5.42555]
[1719930038565,1.4012975,3426.5,3426.4,2.91851]
[1719930038961,1.4012975,3426.5,3426.3,2.507]
[1719930039186,1.4012975,3426.5,3426.0,2.9188]
[1719930039390,1.4012975,3426.5,3425.9,5.507]
[1719930039797,1.4012975,3426.5,3425.9,5.91892]
[1719930040390,1.4012975,3426.5,3425.9,3.0]
[1719930040589,1.83325325,3426.5,3425.9,3.0]
[1719930040869,10.34795,3426.4,3425.4,0.26708319]
[1719930041207,10.34795,3426.4,3425.3,6.26237]
[1719930041208,1.4012975,3426.3,3425.6,3.0]
[1719930041869,1.4012975,3426.3,3425.4,5.91935]
[1719930042307,4.3198975,3426.3,3425.4,3.0]
[1719930042516,1.46678475,3426.2,3425.4,3.0]
[1719930042730,1.46678475,3426.2,3425.4,5.91931]
[1719930043721,1.4012975,3426.1,3425.4,3.0]
[1719930044074,1.4012975,3426.1,3425.4,2.91932]
[1719930044275,1.4012975,3426.1,3425.3,2.91943]
[1719930044486,2.72290572,3426.1,3425.3,2.91943]
[1719930045001,2.72290572,3426.1,3425.2,0.27054319]
[1719930045209,2.72290572,3426.1,3425.2,3.0]
[1719930045390,5.64167572,3426.1,3425.2,2.9195]
[1719930045594,5.64167572,3426.1,3425.0,2.91962]
[1719930045595,0.85603557,3426.0,3425.0,2.91962]
[1719930045790,1.4012975,3425.9,3425.1,2.91954]
[1719930045992,2.34293663,3425.9,3425.2,2.9195]
[1719930047581,2.34293663,3425.9,3425.3,2.91944]
[1719930048104,1.4012975,3425.9,3425.5,2.91925]
[1719930049819,1.4012975,3425.9,3425.4,2.91931]
[1719930050029,1.4012975,3425.9,3425.3,2.91937]
[1719930051428,1.4012975,3425.9,3425.5,2.91927]
[1719930053472,1.4012975,3425.9,3425.5,5.83844]
[1719930053971,1.4012975,3425.9,3425.7,2.91909]
[1719930054530,1.4012975,3425.9,3425.8,2.91902]
[1719930056345,1.4012975,3425.9,3425.8,5.83804]
[1719930057968,1.4012975,3425.9,3425.8,8.75706]
[1719930058150,0.3736375,3425.9,3425.8,12.65006]
[1719930058330,0.2106375,3425.9,3425.8,17.2653724]
[1719930058678,0.2106375,3425.9,3425.8,20.1843924]
[1719930058877,6.9919,3427.2,3426.6,2.91826]
[1719930059031,8.7543,3427.1,3426.5,2.91841]
[1719930059224,8.7543,3427.1,3426.2,2.91865]
[1719930059430,1.57462,3427.0,3426.2,2.91868]
[1719930059771,8.7543,3426.9,3426.0,2.91884]
[1719930059975,6.8203,3426.8,3426.0,2.91877]
[1719930060291,8.7543,3426.7,3426.2,2.91867]
[1719930060495,8.7543,3426.7,3426.4,2.9185]
[1719930060974,8.7543,3426.7,3426.3,2.91859]
[1719930061470,8.7543,3426.7,3426.1,2.91869]
[1719930061632,8.7543,3426.7,3426.3,2.91857]
[1719930061838,8.7543,3426.7,3426.0,5.42582]
[1719930062239,8.7543,3426.7,3426.0,5.42577]
[1719930062439,10.60356,3426.7,3425.8,2.91898]
[1719930062638,0.50537328,3426.6,3425.8,2.91898]
[1719930062889,7.1336,3426.4,3425.7,2.91911]
[1719930063380,7.1336,3426.4,3425.5,2.91921]
[1719930063381,9.25972106,3426.3,3425.5,2.91921]
[1719930063550,8.7543,3426.3,3425.5,2.91921]
[1719930063956,0.50543462,3426.2,3425.5,2.91921]
[1719930064275,8.7543,3426.1,3425.6,2.91913]
[1719930064783,8.7543,3426.1,3425.6,3.090834]
[1719930065003,8.7543,3426.1,3425.6,2.507]
[1719930065218,8.7543,3426.1,3425.3,5.83878]
[1719930065498,8.7543,3426.1,3425.3,2.91937]
[1719930066057,8.7543,3426.1,3425.2,5.42652]
[1719930066292,8.7543,3426.1,3425.0,3.17903399]
[1719930066293,7.4319,3425.9,3425.0,2.91962]
[1719930066460,8.7543,3425.8,3425.0,2.91962]
[1719930066660,0.50550497,3425.7,3425.0,2.91962]
[1719930066907,8.7543,3425.6,3425.1,2.91961]
[1719930067261,8.7543,3425.6,3425.1,3.503555]
[1719930067491,8.7543,3425.6,3425.1,2.91961]
[1719930068460,8.7543,3425.6,3425.1,5.83917]
[1719930068654,8.7543,3425.6,3425.2,2.91952]
[1719930068858,8.7543,3425.6,3425.1,2.91961]
[1719930070216,8.7543,3425.6,3425.2,2.91953]
[1719930070413,8.7543,3425.6,3425.2,2.91951]
[1719930070962,8.7543,3425.6,3425.5,2.91928]
[1719930071393,8.7543,3425.6,3425.4,2.507]
[1719930071775,8.7543,3425.6,3425.4,5.42635]
[1719930072190,8.7543,3425.6,3425.5,2.91928]
[1719930072537,8.7543,3425.6,3425.3,2.91938]
[1719930072825,15.6672,3425.6,3425.0,2.507]
[1719930073542,15.6672,3425.6,3425.0,5.4267]
[1719930073939,15.6672,3425.6,3425.0,2.9197]
[1719930074416,17.817715,3425.6,3424.9,2.91976]
[1719930074585,17.817715,3425.6,3424.4,2.92018]
[1719930074784,2.91942,3425.4,3424.5,2.92012]
[1719930075095,8.7543,3425.3,3424.5,2.92012]
[1719930075283,8.7543,3425.3,3424.4,2.92018]
[1719930075485,0.46249223,3425.2,3424.4,2.92018]
[1719930075708,8.7543,3425.1,3424.4,2.92018]
[1719930078243,8.7543,3425.1,3424.5,2.9201]
[1719930078403,8.7543,3425.1,3424.6,2.507]
[1719930078743,8.7543,3425.1,3422.6,6.16772296]
[1719930078744,6.7561,3425.0,3424.3,2.9203]
[1719930079043,6.7561,3425.0,3424.1,2.92044]
[1719930079044,8.7543,3424.9,3424.1,2.92044]
[1719930079247,10.30534,3424.9,3424.1,2.92044]
[1719930079542,10.30534,3424.9,3424.0,2.507]
[1719930079702,8.7543,3424.9,3424.2,2.92038]
[1719930080117,8.7543,3424.9,3424.3,2.92029]
[1719930080358,8.7543,3424.9,3424.4,2.92021]
[1719930080864,8.7543,3424.9,3424.8,2.91987]
[1719930081035,4.92855505,3424.9,3424.8,8.638727]
[1719930081358,4.63655505,3424.9,3424.8,9.188727]
[1719930082022,4.63655505,3424.9,3424.8,12.108597]
[1719930082638,1.9999989,3424.9,3424.8,12.108597]
[1719930082838,1.9999989,3424.9,3424.8,15.108597]
[1719930083964,7.4266,3426.3,3425.9,2.91889]
[1719930084132,10.87895104,3426.2,3425.9,2.91889]
[1719930084331,8.7563,3426.2,3425.9,2.91889]
[1719930084866,8.7563,3426.2,3426.0,2.91885]
[1719930085068,8.7563,3426.2,3426.1,2.91877]
[1719930085892,8.7563,3426.2,3425.6,2.91914]
[1719930086169,9.63193,3426.2,3425.7,3.0]
[1719930086541,8.7563,3426.2,3425.7,3.0]
[1719930088402,8.7563,3426.2,3425.6,2.91914]
[1719930088805,8.7563,3426.2,3425.3,2.507]
[1719930088806,8.7563,3426.2,3425.9,5.8378]
[1719930089086,8.7563,3426.2,3425.9,2.91888]
[1719930089249,8.7563,3426.2,3425.6,2.91918]
[1719930089448,8.7563,3426.2,3425.7,2.9191]
[1719930090249,8.7563,3426.2,3425.9,2.91892]
[1719930091570,8.7563,3426.2,3425.9,5.83777]
[1719930091775,8.7563,3426.2,3426.1,2.91877]
[1719930091978,8.7563,3426.2,3426.1,5.83754]
[1719930092177,8.7563,3426.2,3426.1,8.72355346]
[1719930095372,8.7563,3426.2,3426.1,8.34454]
[1719930095791,8.7563,3426.2,3426.1,2.91877]
[1719930096611,8.7563,3426.2,3425.8,2.91898]
[1719930096756,17.11073,3426.2,3425.6,2.91915]
[1719930096962,17.11073,3426.2,3425.2,2.91946]
[1719930097210,20.02941,3426.2,3425.2,2.91946]
[1719930097562,0.50546501,3426.1,3425.2,2.91946]
[1719930097861,20.02941,3426.2,3425.2,2.91946]
[1719930097862,11.31525962,3426.0,3425.2,2.91946]
[1719930098062,11.31525962,3426.0,3425.0,2.91967]
[1719930098063,13.7286475,3426.0,3425.1,2.91961]
[1719930098282,2.50017575,3425.9,3425.1,2.91961]
[1719930098490,8.7563,3425.8,3425.1,2.91961]
[1719930098695,8.7563,3425.8,3425.2,2.91953]
[1719930099967,8.7563,3425.8,3425.0,2.91967]
[1719930100166,1.41753358,3425.7,3424.8,8.34667]
[1719930100363,8.7563,3425.6,3424.9,2.91971]
[1719930100691,8.7563,3425.6,3424.8,5.42687]
[1719930100692,6.9054,3425.5,3424.8,5.42687]
[1719930100889,8.7563,3425.4,3424.8,2.91987]
[1719930101070,8.7563,3425.4,3424.8,5.83967]
[1719930101266,8.7563,3425.4,3424.9,2.91979]
[1719930102767,8.7563,3425.4,3424.6,2.92004]
[1719930102768,13.63553034,3425.4,3424.6,2.92004]
[1719930104305,8.7563,3425.4,3424.4,0.26559455]
[1719930104505,8.7563,3425.4,3424.8,2.91979]
[1719930104800,8.7563,3425.4,3424.6,2.92001]
[1719930104801,10.04342332,3425.4,3424.6,2.92001]
[1719930105001,12.96279332,3425.4,3424.6,2.92001]
[1719930105205,12.96279332,3425.4,3424.4,2.92018]
[1719930105206,2.91946,3425.3,3424.4,2.92018]
[1719930105511,8.7563,3425.2,3424.4,2.92018]
[1719930106289,8.7563,3425.2,3424.5,2.92012]
[1719930107221,8.7563,3425.2,3424.4,2.92017]
[1719930107386,8.7563,3425.2,3424.6,2.92004]
[1719930107590,10.55034403,3425.2,3424.6,2.92004]
[1719930107988,10.55034403,3425.2,3424.8,2.91982]
[1719930108332,8.7563,3425.2,3424.8,2.91982]
[1719930108692,8.7563,3425.2,3425.0,2.9197]
[1719930109234,8.7563,3425.2,3425.1,2.91962]
[1719930109591,8.7563,3425.2,3425.1,5.83924]
[1719930110312,8.7563,3425.2,3424.9,2.91978]
[1719930110515,8.7563,3425.2,3424.9,2.91974]
[1719930112326,8.7563,3425.2,3424.7,5.83982]
[1719930112526,8.7563,3425.2,3424.4,2.92015]
[1719930112830,2.91976,3425.0,3424.1,0.26814678]
[1719930113130,7.1628,3424.8,3424.1,2.9204]
[1719930113428,8.7563,3424.7,3424.1,2.9204]
[1719930113630,8.7563,3424.7,3423.9,2.92057]
[1719930113804,8.7563,3424.7,3423.8,2.92073]
[1719930113991,1.88389,3424.6,3423.8,2.92073]
[1719930114186,1.88389,3424.6,3423.7,2.92078]
[1719930114187,8.7563,3424.5,3423.9,2.92061]
[1719930115728,2.9203,3424.4,3423.5,5.92098]
[1719930116031,10.404357,3424.3,3423.6,3.0]
[1719930116192,11.67661,3424.3,3423.6,3.0]
[1719930116393,11.67661,3424.3,3423.5,2.92098]
[1719930116898,11.67661,3424.3,3423.3,2.92115]
[1719930117232,9.70625,3424.2,3423.1,2.9213]
[1719930117435,2.9206,3424.0,3423.1,2.92127]
[1719930117657,8.7563,3423.9,3423.1,2.92127]
[1719930120901,8.7563,3423.9,3422.7,2.92164]
[1719930121128,8.7563,3423.9,3422.5,0.2927]
[1719930121129,10.33045,3423.7,3422.5,0.2927]
[1719930121331,2.92098,3423.5,3422.6,5.92175]
[1719930121569,8.7563,3423.4,3422.6,2.92175]
[1719930121855,8.7563,3423.4,3422.6,2.92174]
[1719930121856,1.167728,3423.3,3422.6,2.92174]
[1719930122053,8.7563,3423.2,3422.6,2.92174]
[1719930122218,7.4881,3423.1,3422.5,0.2927]
[1719930122425,8.7563,3423.0,3422.3,3.0]
[1719930122758,8.7563,3423.0,3422.4,2.92186]
[1719930124349,8.7563,3423.0,3422.3,5.922]
[1719930124558,8.7563,3423.0,3422.4,2.92192]
[1719930125154,8.7563,3423.0,3422.5,2.92176]
[1719930125363,8.7563,3423.0,3422.6,2.92167]
[1719930126062,8.7563,3423.0,3422.7,2.92163]
[1719930126357,8.7563,3423.0,3422.3,3.0]
[1719930126358,8.7563,3423.0,3422.9,5.84298]
[1719930126567,6.37677665,3423.0,3422.9,6.427278]
[1719930126917,6.37677665,3423.0,3422.9,9.348768]
[1719930127111,6.37677665,3423.0,3422.9,11.855768]
[1719930127371,5.60749055,3423.0,3422.9,11.855768]
[1719930127513,6.1e-06,3423.0,3422.9,25.501958]
[1719930127952,2.91937,3425.4,3422.9,25.501958]
[1719930127953,6.7516,3425.0,3424.3,2.92024]
[1719930128151,8.76,3424.9,3424.3,2.92024]
[1719930128556,8.76,3424.9,3424.4,2.92019]
[1719930129860,8.76,3424.9,3424.3,2.92024]
[1719930129861,8.76,3424.9,3424.5,2.92012]
[1719930130218,8.76,3424.9,3424.8,2.91987]
[1719930131033,8.76,3424.9,3424.8,5.83974]
[1719930131376,8.76,3424.9,3423.8,3.0]
[1719930131584,7.142,3424.8,3423.6,2.92087]
[1719930131713,7.142,3424.8,3423.6,2.92085]
[1719930131714,10.3502,3424.7,3423.6,2.92085]
[1719930131916,11.67997,3424.7,3423.7,2.92076]
[1719930132163,5.094286,3424.6,3423.6,2.92089]
[1719930132325,8.76,3424.5,3423.7,2.92081]
[1719930132530,8.76,3424.5,3423.9,2.92057]
[1719930132770,8.76,3424.5,3424.3,2.92028]
[1719930132919,8.76,3424.5,3424.3,2.92029]
[1719930133449,8.76,3424.5,3424.4,2.92021]
[1719930133741,8.76,3424.5,3424.4,11.81763]
[1719930133948,8.76,3424.5,3424.4,8.34742]
[1719930135545,8.76,3424.5,3424.4,12.102372]
[1719930135732,8.76,3424.5,3424.4,12.652372]
[1719930136567,8.76,3424.5,3424.4,2.92021]
[1719930136723,8.76,3424.5,3424.4,5.84042]
[1719930137164,8.76,3424.5,3424.4,8.34742]
[1719930138285,8.76,3424.5,3424.4,5.42721]
[1719930138565,8.76,3424.5,3424.4,2.507]
[1719930138870,8.76,3424.5,3424.2,2.92035]
[1719930138871,9.636,3424.5,3424.2,2.92035]
[1719930139227,9.636,3424.5,3424.0,2.507]
[1719930139426,9.636,3424.5,3424.1,2.92047]
[1719930140952,0.9636,3424.4,3423.7,2.9208]
[1719930141279,8.76,3424.3,3423.8,2.9207]
[1719930142580,7.3453,3424.2,3423.6,5.42789]
[1719930142741,8.76,3424.1,3423.6,2.92089]
[1719930143533,8.76,3424.1,3423.7,2.92081]
[1719930145071,8.76,3424.1,3423.9,2.92064]
[1719930145368,8.76,3424.1,3424.0,8.34812]
[1719930146534,8.76,3424.1,3424.0,11.26868]
[1719930146743,8.76,3424.1,3424.0,13.631808]
[1719930146939,7.99684013,3424.1,3424.0,13.631808]
[1719930147165,7.99684013,3424.1,3424.0,8.204248]
[1719930147748,7.99684013,3424.1,3424.0,2.92056]
[1719930148294,7.99684013,3424.1,3424.0,5.84112]
[1719930151657,7.99684013,3424.1,3423.9,2.92063]
[1719930151858,7.99684013,3424.1,3423.8,2.92069]
[1719930152062,7.99684013,3424.1,3423.9,2.92064]
[1719930152316,7.99684013,3424.1,3424.0,2.92056]
[1719930154595,7.99684013,3424.1,3424.0,10.146507]
[1719930155866,7.99684013,3424.1,3424.0,7.225947]
[1719930156208,7.99684013,3424.1,3424.0,9.182947]
[1719930156418,7.99684013,3424.1,3424.0,5.84112]
[1719930156561,7.99684013,3424.1,3423.9,2.92059]
[1719930156765,7.99684013,3424.1,3423.9,3.0]
[1719930157486,7.99684013,3424.1,3424.0,2.92056]
[1719930157687,7.99684013,3424.1,3423.8,2.92065]
[1719930157914,7.99684013,3424.1,3423.9,2.92064]
[1719930158306,7.99684013,3424.1,3424.0,2.92056]
[1719930159705,7.99684013,3424.1,3424.0,5.84112]
[1719930159876,7.99684013,3424.1,3424.0,6.133176]
[1719930160809,7.99684013,3424.1,3424.0,9.053736]
[1719930162184,7.99684013,3424.1,3424.0,9.603736]
[1719930162980,7.99684013,3424.1,3424.0,15.524296]
[1719930163717,1.81,3425.6,3424.0,3.842056]
[1719930163930,7.0491,3426.0,3425.6,2.91912]
[1719930164080,7.0491,3426.0,3425.7,2.9191]
[1719930164478,8.757,3425.9,3425.7,2.9191]
[1719930167030,8.757,3425.9,3425.6,2.91911]
[1719930167317,1.58061,3425.8,3425.6,2.91911]
[1719930167523,8.757,3425.7,3425.6,2.91911]
[1719930169591,8.757,3425.7,3425.6,5.8383]
[1719930169817,8.757,3425.7,3425.6,8.3453]
[1719930170343,8.757,3425.7,3425.6,11.26449]
[1719930172054,8.757,3425.7,3425.6,14.26449]
[1719930172363,8.757,3425.7,3425.6,14.87958956]
[1719930172851,8.757,3425.7,3425.6,14.26449]
[1719930172999,8.757,3425.7,3425.6,11.3453]
[1719930177612,8.757,3425.7,3425.6,14.81449]
[1719930177613,8.58777591,3425.7,3425.6,14.81449]
[1719930177984,8.58777591,3425.7,3425.6,17.73368]
[1719930178123,8.58777591,3425.7,3425.6,18.64083556]
[1719930178328,7.19569591,3425.7,3425.6,25.54853556]
[1719930178628,6.62569591,3425.7,3425.6,25.54853556]
[1719930179115,5.80199591,3425.7,3425.6,25.54853556]
[1719930179317,4.95709591,3425.7,3425.6,25.54853556]
[1719930180352,4.24757591,3425.7,3425.6,25.54853556]
[1719930180555,3.57337591,3425.7,3425.6,25.54853556]
[1719930180760,3.57337591,3425.7,3425.6,23.04153556]
[1719930183975,2.58937591,3425.7,3425.6,23.04153556]
[1719930184136,1.91724591,3425.7,3425.6,23.04153556]
[1719930184520,7.3782,3427.8,3425.7,2.91909]
[1719930184754,7.969928,3427.8,3427.0,2.91795]
[1719930185953,7.969928,3427.8,3427.0,5.83588]
[1719930186123,1.3887168,3427.7,3427.0,2.91793]
[1719930187194,1.3887168,3427.7,3426.4,2.91845]
[1719930187195,7.2658,3427.6,3426.4,2.91845]
[1719930187324,2.91771,3427.4,3426.4,2.91845]
[1719930187520,2.91771,3427.4,3426.1,2.507]
[1719930187521,7.2658,3427.2,3426.1,2.507]
[1719930187728,2.91797,3427.1,3426.3,2.91859]
[1719930187928,7.2658,3427.2,3426.1,2.507]
[1719930188219,7.2658,3427.2,3426.6,2.91829]
[1719930188444,7.2658,3427.2,3426.5,2.91842]
[1719930188723,7.2658,3427.2,3426.6,2.91833]
[1719930189447,7.2658,3427.2,3426.4,2.91844]
[1719930189649,0.72658,3427.1,3426.3,2.91855]
[1719930189872,0.72658,3427.1,3426.5,2.91842]
[1719930190772,0.72658,3427.1,3426.3,2.91855]
[1719930190926,0.72658,3427.1,3426.0,2.507]
[1719930191124,7.0417,3426.8,3426.0,2.91884]
[1719930191462,12.17925805,3426.7,3425.6,5.42619]
[1719930191668,7.2772,3426.5,3425.6,2.91919]
[1719930191967,11.67412,3426.4,3425.4,2.91929]
[1719930192173,8.7556,3426.4,3425.4,2.91929]
[1719930192323,7.2772,3426.1,3425.4,2.91935]
[1719930192674,8.7556,3426.0,3425.4,2.91935]
[1719930193166,8.7556,3426.0,3425.1,2.507]
[1719930193327,8.7556,3426.0,3424.9,2.91972]
[1719930193328,11.67452,3426.0,3424.9,2.91972]
[1719930193529,2.69253642,3425.9,3425.0,2.91968]
[1719930193828,7.027,3425.7,3425.0,2.91968]
[1719930194033,8.7556,3425.6,3424.9,2.91978]
[1719930194269,10.844468,3425.6,3425.0,5.91968]
[1719930194579,8.7556,3425.6,3425.0,5.91968]
[1719930195930,8.7556,3425.6,3425.1,2.91961]
[1719930196464,8.7556,3425.6,3424.9,2.91973]
[1719930197294,1.870168,3425.5,3424.9,2.91973]
[1719930197503,8.7556,3425.4,3424.9,2.91973]
[1719930199599,8.7556,3425.4,3425.0,2.91969]
[1719930203303,8.7556,3425.4,3424.6,0.26757901]
[1719930203304,8.7556,3425.4,3425.3,2.91945]
[1719930203505,8.7556,3425.4,3425.3,3.754048]
[1719930203661,8.7556,3425.4,3425.3,2.91945]
[1719930204373,8.7556,3425.4,3425.3,5.8389]
[1719930209168,8.7556,3425.4,3425.3,2.91945]
[1719930209375,8.7556,3425.4,3425.1,2.91959]
[1719930209577,8.7556,3425.4,3424.9,2.91974]
[1719930209800,8.7556,3425.4,3425.1,2.91962]
[1719930212326,8.7556,3425.4,3425.0,2.91968]
[1719930212622,8.7556,3425.4,3425.0,2.9197]
[1719930212623,10.31346,3425.4,3425.0,2.9197]
[1719930213121,8.7556,3425.4,3425.0,2.9197]
[1719930213419,8.7556,3425.4,3424.9,2.91974]
[1719930213823,8.7556,3425.4,3424.9,5.83946]
[1719930214186,8.7556,3425.4,3425.0,2.9197]
[1719930214385,8.7556,3425.4,3424.7,5.42692]
[1719930214789,8.7556,3425.4,3424.9,2.91973]
[1719930214990,10.605371,3425.4,3424.7,5.42692]
[1719930215189,10.605371,3425.4,3424.8,2.91987]
[1719930216120,10.605371,3425.4,3424.9,2.91978]
[1719930217029,10.605371,3425.4,3424.7,2.91992]
[1719930217030,1.16354595,3425.3,3424.7,2.91992]
[1719930217199,8.7556,3425.2,3424.8,2.91987]
[1719930219194,8.7556,3425.2,3424.3,2.507]
[1719930219418,8.7556,3425.2,3424.3,2.92023]
[1719930219616,6.9407,3425.0,3424.2,2.92035]
[1719930219818,11.6754,3424.9,3424.1,2.92043]
[1719930220213,2.6293533,3424.8,3423.9,2.92062]
[1719930220417,11.6777886,3424.7,3423.9,2.92062]
[1719930220752,8.7556,3424.7,3424.0,2.92056]
[1719930220912,8.7556,3424.7,3423.8,2.92065]
[1719930221114,8.7556,3424.7,3423.7,2.92074]
[1719930221115,13.82919,3424.7,3423.9,2.92063]
[1719930221313,13.82919,3424.7,3423.7,2.92074]
[1719930221314,0.50566845,3424.6,3423.7,2.92074]
[1719930221514,8.7556,3424.5,3423.8,3.0]
[1719930221820,8.7556,3424.5,3423.8,5.92067]
[1719930222442,7.2238,3424.4,3423.8,5.92067]
[1719930222753,8.7556,3424.3,3423.8,5.92067]
[1719930222958,8.7556,3424.3,3423.8,2.92067]
[1719930223830,8.7556,3424.3,3423.4,3.0]
[1719930223831,10.23983749,3424.3,3423.4,3.0]
[1719930224062,10.23983749,3424.3,3423.5,2.92093]
[1719930224261,13.16015749,3424.3,3423.4,3.0]
[1719930224572,8.75463775,3424.2,3423.4,3.0]
[1719930224721,8.7556,3424.1,3423.4,3.0]
[1719930224916,8.7556,3424.1,3423.4,5.92106]
[1719930227857,8.7556,3424.1,3423.4,2.92106]
[1719930228629,2.92072,3423.9,3423.0,2.92136]
[1719930228839,8.7556,3423.8,3423.1,3.0]
[1719930229048,8.7556,3423.8,3423.1,2.92132]
[1719930229854,9.99630316,3423.8,3423.1,2.92132]
[1719930230058,7.1543,3423.7,3422.9,2.92147]
[1719930230258,11.67651,3423.6,3422.8,2.92155]
[1719930230477,13.68364632,3423.6,3422.7,2.92159]
[1719930230640,10.76273632,3423.6,3422.5,2.92177]
[1719930230837,2.92125,3423.2,3422.5,2.92177]
[1719930231040,8.7556,3423.1,3422.5,2.92177]
[1719930231726,8.7556,3423.1,3422.6,2.92174]
[1719930231928,8.7556,3423.1,3422.5,2.92177]
[1719930232131,8.7556,3423.1,3422.5,2.9218]
[1719930232426,8.7556,3423.1,3422.7,2.92159]
[1719930233039,8.7556,3423.1,3422.8,2.92154]
[1719930233442,8.7556,3423.1,3422.7,2.92159]
[1719930234451,8.7556,3423.1,3422.8,2.92158]
[1719930235756,6.8155,3423.0,3422.2,0.27057643]
[1719930235978,8.7556,3422.9,3422.5,2.92176]
[1719930236258,8.7556,3422.9,3422.5,5.84352]
[1719930237386,8.7556,3422.9,3422.6,2.92174]
[1719930238205,8.7556,3422.9,3422.5,2.92181]
[1719930238501,8.7556,3422.9,3421.7,2.92244]
[1719930238502,2.92169,3422.7,3421.7,2.92244]
[1719930238794,11.67741,3422.6,3421.7,2.92245]
[1719930239005,11.67741,3422.6,3421.1,9.80197]
[1719930239160,11.67741,3422.6,3421.2,2.507]
[1719930239355,8.7556,3422.6,3421.8,2.92237]
[1719930239552,8.7556,3422.6,3421.9,2.92233]
[1719930239804,8.7556,3422.6,3422.1,2.92216]
[1719930240293,8.7556,3422.6,3421.1,7.15005406]
[1719930240620,8.7556,3422.6,3422.0,2.92221]
[1719930240755,8.7556,3422.6,3421.8,2.92241]
[1719930240756,1.59274,3422.5,3421.8,2.92241]
[1719930240956,8.7556,3422.4,3421.8,2.92241]
[1719930242214,8.7556,3422.4,3421.9,2.92233]
[1719930243805,8.7556,3422.4,3421.2,5.92294]